bitfinex/quotes_BTCUSD_20230115
["timestamp","ask_amount","ask_price","bid_price","bid_amount"]
[1673821927502,0.38370154,20849.0,20848.0,0.93820869]
[1673821927792,0.38120154,20849.0,20848.0,0.14482773]
[1673821929065,0.04034481,20849.0,20848.0,0.36053851]
[1673821929282,0.04034481,20849.0,20848.0,0.93819168]
[1673821931353,0.04034481,20849.0,20848.0,0.36053851]
[1673821931606,0.04034481,20849.0,20848.0,0.14482773]
[1673821933139,0.52848381,20849.0,20848.0,0.36053851]
[1673821934252,0.64328381,20849.0,20848.0,0.14482773]
[1673821934433,1.00794848,20849.0,20848.0,0.14482773]
[1673821934688,1.00794848,20849.0,20848.0,0.36053851]
[1673821935469,1.00794848,20849.0,20848.0,0.14482773]
[1673821936742,1.00794848,20849.0,20848.0,0.001]
[1673821937002,1.48758748,20849.0,20848.0,0.001]
[1673821937268,1.95143293,20849.0,20848.0,0.001]
[1673821938148,1.93603785,20849.0,20846.0,0.14382773]
[1673821938325,1.8432338,20849.0,20848.0,0.005]
[1673821938607,0.31086755,20848.0,20846.0,0.14382773]
[1673821938860,0.696086,20847.0,20846.0,0.14382773]
[1673821939120,0.488185,20847.0,20845.0,0.7517333]
[1673821939417,0.479685,20847.0,20846.0,0.005]
[1673821939643,0.488185,20847.0,20846.0,0.005]
[1673821939905,0.488185,20847.0,20846.0,0.14882773]
[1673821940172,0.488185,20847.0,20846.0,0.005]
[1673821940718,0.809715,20847.0,20845.0,0.7517333]
[1673821940944,0.488185,20847.0,20846.0,0.005]
[1673821941205,0.488185,20847.0,20845.0,0.7517333]
[1673821941206,0.84576882,20847.0,20845.0,0.53602252]
[1673821941461,0.88376882,20847.0,20846.0,0.005]
[1673821941744,0.84576882,20847.0,20845.0,0.7517333]
[1673821942077,0.0085,20846.0,20845.0,0.89642994]
[1673821942263,0.0085,20846.0,20845.0,0.752619]
[1673821942518,0.488208,20846.0,20845.0,0.752619]
[1673821942774,0.488208,20846.0,20845.0,1.32973774]
[1673821943300,0.488208,20846.0,20845.0,1.32873774]
[1673821943554,0.500208,20846.0,20845.0,0.93754295]
[1673821945121,0.500208,20846.0,20845.0,0.14471343]
[1673821946390,0.500208,20846.0,20845.0,0.36042421]
[1673821946899,0.500208,20846.0,20845.0,0.93731739]
[1673821948199,1.70888723,20846.0,20845.0,0.001]
[1673821948518,2.45920842,20846.0,20845.0,0.001]
[1673821948711,2.80039938,20846.0,20845.0,0.001]
[1673821948965,2.53038611,20846.0,20845.0,0.001]
[1673821949214,2.80304363,20846.0,20842.0,0.01126632]
[1673821949473,0.58642264,20845.0,20842.0,0.01126632]
[1673821949731,0.1146,20843.0,20842.0,0.01126632]
[1673821949988,0.331001,20843.0,20842.0,0.01126632]
[1673821950241,0.810778,20843.0,20842.0,0.01126632]
[1673821950502,0.819278,20843.0,20842.0,0.01426632]
[1673821951274,0.819278,20843.0,20842.0,0.01126632]
[1673821951527,1.13885426,20843.0,20842.0,0.01126632]
[1673821952072,1.18785426,20843.0,20842.0,0.01515416]
[1673821961004,1.02752599,20843.0,20842.0,0.01515416]
[1673821961369,1.23766695,20843.0,20842.0,0.01515416]
[1673821973322,1.65150564,20843.0,20834.0,0.28670193]
[1673821973583,1.65150564,20843.0,20833.0,0.44249232]
[1673821973584,0.48159374,20841.0,20838.0,0.00095538]
[1673821973846,1.79827028,20840.0,20835.0,0.30529079]
[1673821974135,0.51225595,20839.0,20835.0,0.30529079]
[1673821974358,1.74195642,20838.0,20835.0,0.30529079]
[1673821974610,1.33482947,20838.0,20835.0,0.30529079]
[1673821974854,0.968294,20838.0,20834.0,0.50332378]
[1673821975101,0.968294,20838.0,20834.0,0.1153]
[1673821975599,0.479871,20839.0,20834.0,0.1153]
[1673821975844,0.004,20838.0,20834.0,0.1153]
[1673821976088,0.19072595,20838.0,20834.0,0.1153]
[1673821976336,0.20072595,20838.0,20834.0,0.1153]
[1673821976604,0.479871,20839.0,20834.0,0.595281]
[1673821976852,0.20072595,20839.0,20834.0,0.595281]
[1673821977355,0.19072595,20839.0,20835.0,0.3559262]
[1673821977608,0.3660042,20839.0,20835.0,0.3559262]
[1673821978096,0.38879104,20838.0,20835.0,0.3559262]
[1673821978602,0.39879104,20838.0,20835.0,0.3559262]
[1673821979102,0.963741,20839.0,20835.0,0.3559262]
[1673821979348,0.004,20838.0,20835.0,0.3559262]
[1673821979842,0.004,20838.0,20836.0,0.3363525]
[1673821981583,1.35090954,20839.0,20836.0,0.3363525]
[1673821981836,0.06,20838.0,20836.0,0.3363525]
[1673821982622,1.35093154,20839.0,20836.0,0.3363525]
[1673821982884,0.0085,20838.0,20836.0,0.3363525]
[1673821983134,0.32719628,20838.0,20836.0,0.3363525]
[1673821983394,0.86709228,20838.0,20836.0,0.3363525]
[1673821984252,0.80709228,20838.0,20836.0,0.3363525]
[1673821984963,0.86709228,20838.0,20836.0,0.3363525]
[1673821985502,0.86709228,20838.0,20833.0,0.27195267]
[1673821985739,0.58348884,20837.0,20834.0,0.35183329]
[1673821985956,0.39276289,20837.0,20834.0,0.35183329]
[1673821987268,0.39276289,20837.0,20835.0,0.00012517]
[1673821987516,0.39276289,20837.0,20834.0,0.35183329]
[1673821987763,0.40276289,20837.0,20834.0,0.35183329]
[1673821989030,0.01,20837.0,20834.0,0.35183329]
[1673821990021,0.01,20837.0,20834.0,0.49523668]
[1673821990241,0.01,20837.0,20835.0,0.32029871]
[1673821991010,0.86616067,20838.0,20835.0,0.32029871]
[1673821991257,0.004,20837.0,20835.0,0.32029871]
[1673821995229,0.004,20837.0,20835.0,0.31529871]
[1673821995471,0.004,20837.0,20835.0,0.31612871]
[1673821996022,0.00390814,20837.0,20835.0,0.31612871]
[1673821996705,0.00390814,20837.0,20836.0,0.29014873]
[1673821997690,0.86616067,20838.0,20836.0,0.29014873]
[1673821998184,0.06,20837.0,20836.0,0.29014873]
[1673822002634,0.055,20837.0,20836.0,0.29014873]
[1673822004236,0.80445475,20838.0,20836.0,0.29014873]
[1673822004482,0.057,20837.0,20836.0,0.29114873]
[1673822004749,0.80445475,20838.0,20836.0,0.29014873]
[1673822004995,0.057,20837.0,20836.0,0.29114873]
[1673822010371,0.67449607,20837.0,20836.0,0.001]
[1673822010632,0.99602607,20837.0,20836.0,0.001]
[1673822011327,1.47594107,20837.0,20836.0,0.001]
[1673822013314,1.61827235,20837.0,20836.0,0.001]
[1673822014153,1.47594107,20837.0,20836.0,0.001]
[1673822020276,1.83136255,20837.0,20836.0,0.001]
[1673822020527,1.9239909,20837.0,20836.0,0.001]
[1673822020778,2.46655987,20837.0,20836.0,0.001]
[1673822021035,2.18190235,20837.0,20836.0,0.001]
[1673822021541,2.18190235,20837.0,20833.0,0.01324928]
[1673822021542,1.72526726,20837.0,20833.0,0.01324928]
[1673822021799,0.2304,20834.0,20833.0,0.01324928]
[1673822022054,0.55193,20834.0,20833.0,0.01324928]
[1673822022314,0.2304,20834.0,20833.0,0.01324928]
[1673822022595,0.94497838,20834.0,20833.0,0.01324928]
[1673822022834,0.62344838,20834.0,20833.0,0.01324928]
[1673822023055,0.62344838,20834.0,20833.0,0.01316768]
[1673822023833,0.94497838,20834.0,20833.0,0.01316768]
[1673822024060,0.83984938,20834.0,20833.0,0.01316768]
[1673822024327,1.03397838,20834.0,20833.0,0.01316768]
[1673822024593,0.71244838,20834.0,20833.0,0.01316768]
[1673822025550,1.03397838,20834.0,20833.0,0.01316768]
[1673822025807,0.71244838,20834.0,20833.0,0.01316768]
[1673822031644,1.03397838,20834.0,20833.0,0.01316768]
[1673822032201,0.92884938,20834.0,20833.0,0.01316768]
[1673822032626,0.71244838,20834.0,20833.0,0.01316768]
[1673822032801,1.03397838,20834.0,20833.0,0.01316768]
[1673822034865,0.71244838,20834.0,20833.0,0.01316768]
[1673822035118,1.03397838,20834.0,20833.0,0.01316768]
[1673822035366,0.70744838,20834.0,20833.0,0.01316768]
[1673822035609,1.02897838,20834.0,20833.0,0.01316768]
[1673822036122,0.70744838,20834.0,20833.0,0.01316768]
[1673822036374,1.02897838,20834.0,20833.0,0.01316768]
[1673822036929,1.19593238,20834.0,20833.0,0.01316768]
[1673822037163,1.51746238,20834.0,20833.0,0.01316768]
[1673822037414,1.41233338,20834.0,20833.0,0.01316768]
[1673822037934,1.19593238,20834.0,20833.0,0.01316768]
[1673822038202,1.51746238,20834.0,20833.0,0.01316768]
[1673822038450,1.63246238,20834.0,20833.0,0.01316768]
[1673822039202,1.40706238,20834.0,20833.0,0.01316768]
[1673822039420,1.52186238,20834.0,20833.0,0.01316768]
[1673822040176,1.128814,20834.0,20833.0,0.01316768]
[1673822040443,1.44229512,20834.0,20833.0,0.01316768]
[1673822041177,1.5101363,20834.0,20833.0,0.01316768]
[1673822041434,3.10795946,20834.0,20833.0,0.01316768]
[1673822041684,3.24812642,20834.0,20833.0,0.01316768]
[1673822042198,3.15912642,20834.0,20833.0,0.01316768]
[1673822042445,2.80492801,20834.0,20833.0,0.01316768]
[1673822042705,2.60897823,20834.0,20833.0,0.01316768]
[1673822042963,3.1740804,20834.0,20833.0,0.01316768]
[1673822043461,2.48616041,20834.0,20833.0,0.01316768]
[1673822044293,2.69992225,20834.0,20833.0,0.01316768]
[1673822045275,4.27094989,20834.0,20832.0,0.01317331]
[1673822045545,4.27094989,20834.0,20832.0,0.0047155]
[1673822045546,4.18303713,20833.0,20832.0,0.0047155]
[1673822045764,4.18303713,20833.0,20831.0,0.00788213]
[1673822045765,5.3156255,20833.0,20831.0,0.00788213]
[1673822046012,2.11206774,20832.0,20831.0,0.00788213]
[1673822046261,4.32959774,20832.0,20831.0,0.00788213]
[1673822046515,4.44687462,20832.0,20831.0,0.00788213]
[1673822046765,5.10285378,20832.0,20831.0,0.00788213]
[1673822047014,5.10715378,20832.0,20831.0,0.00788213]
[1673822047266,4.89144437,20832.0,20831.0,0.00788213]
[1673822047516,4.87029216,20832.0,20831.0,0.00788213]
[1673822047780,4.74530497,20832.0,20831.0,0.00788213]
[1673822048017,5.14943915,20832.0,20831.0,0.00788213]
[1673822048545,5.24043915,20832.0,20831.0,0.00788213]
[1673822048794,4.62291029,20832.0,20831.0,0.00788213]
[1673822049067,4.95550699,20832.0,20831.0,0.00788213]
[1673822049291,5.00678699,20832.0,20831.0,0.00788213]
[1673822049537,4.65115699,20832.0,20831.0,0.00788213]
[1673822049792,5.19980971,20832.0,20831.0,0.00788213]
[1673822050820,5.29180971,20832.0,20831.0,0.00788213]
[1673822051071,5.29180971,20832.0,20831.0,1.3e-07]
[1673822051317,4.88803897,20832.0,20831.0,1.3e-07]
[1673822052056,6.15573897,20832.0,20831.0,1.3e-07]
[1673822052878,0.4801,20829.0,20825.0,0.01319853]
[1673822053148,0.05128,20826.0,20822.0,0.02549147]
[1673822053403,3.31593614,20825.0,20822.0,0.02549147]
[1673822053663,1.59002314,20824.0,20822.0,0.02549147]
[1673822053912,3.28534569,20823.0,20822.0,0.02549147]
[1673822054169,3.88006614,20823.0,20822.0,0.02549147]
[1673822054423,3.68934019,20823.0,20822.0,0.02549147]
[1673822054686,4.68184019,20823.0,20817.0,0.01729274]
[1673822054938,0.3451,20818.0,20817.0,0.30696533]
[1673822055191,2.30691495,20818.0,20817.0,0.30696533]
[1673822055464,2.99871495,20818.0,20817.0,0.30696533]
[1673822055724,2.807989,20818.0,20817.0,0.01729274]
[1673822055974,4.10986834,20818.0,20817.0,0.01729274]
[1673822056226,3.55688567,20818.0,20817.0,0.01729274]
[1673822056477,3.26969922,20818.0,20817.0,0.01729274]
[1673822056759,3.59394559,20818.0,20817.0,0.01729274]
[1673822057045,3.36069922,20818.0,20817.0,0.01729274]
[1673822057269,3.7257298,20818.0,20817.0,0.01729274]
[1673822057766,2.57281958,20818.0,20817.0,0.01729274]
[1673822059297,2.09246658,20818.0,20817.0,0.01729274]
[1673822059591,4.0241368,20818.0,20817.0,0.01729274]
[1673822059827,3.67258866,20818.0,20817.0,0.01729274]
[1673822060107,3.28248866,20818.0,20817.0,0.01729274]
[1673822060367,2.89148866,20818.0,20817.0,0.01729274]
[1673822060680,3.28248866,20818.0,20817.0,0.01729274]
[1673822060953,3.19148866,20818.0,20817.0,0.01729274]
[1673822061212,3.28348866,20818.0,20817.0,0.01729274]
[1673822062014,3.19148866,20818.0,20817.0,0.01729274]
[1673822062274,3.28348866,20818.0,20817.0,0.01729274]
[1673822063036,3.97528866,20818.0,20817.0,0.01729274]
[1673822063739,0.1,20817.0,20808.0,0.88838798]
[1673822063741,0.01326952,20816.0,20810.0,0.3606577]
[1673822063991,0.05128,20813.0,20811.0,0.31042431]
[1673822064246,1.993106,20812.0,20811.0,0.31042431]
[1673822064516,2.47880769,20812.0,20810.0,0.33220893]
[1673822064735,0.331701,20811.0,20810.0,0.33220893]
[1673822064992,0.820716,20811.0,20810.0,0.33220893]
[1673822065991,0.911716,20811.0,20810.0,0.33220893]
[1673822066253,0.911716,20811.0,20808.0,0.01806251]
[1673822066508,0.43683,20810.0,20808.0,0.3759361]
[1673822066755,1.186023,20809.0,20808.0,0.3759361]
[1673822067000,1.291152,20809.0,20808.0,0.3759361]
[1673822067249,0.969622,20809.0,20808.0,0.3759361]
[1673822068019,1.27937108,20809.0,20808.0,0.01806251]
[1673822068278,2.07810277,20809.0,20808.0,0.01806251]
[1673822068530,2.06397377,20809.0,20808.0,0.01806251]
[1673822068798,2.25469972,20809.0,20802.0,0.10109685]
[1673822069047,0.480858,20797.0,20785.0,0.42924304]
[1673822069361,0.61973372,20796.0,20787.0,0.14230275]
[1673822069622,0.61973372,20796.0,20781.0,0.63711]
[1673822069623,0.04787328,20783.0,20772.0,0.62070659]
[1673822069928,0.04787328,20783.0,20772.0,1.275457]
[1673822069929,0.2,20781.0,20772.0,1.275457]
[1673822070185,1.32188,20773.0,20772.0,0.841457]
[1673822070438,1.32188,20773.0,20768.0,0.01]
[1673822070439,1.70735383,20773.0,20768.0,0.00596633]
[1673822070697,0.05128,20769.0,20768.0,0.00596633]
[1673822070958,0.331701,20769.0,20767.0,0.44738726]
[1673822071281,0.32153,20768.0,20767.0,0.44738726]
[1673822071551,0.11659,20774.0,20767.0,0.44738726]
[1673822071796,0.40712195,20773.0,20767.0,0.44738726]
[1673822072043,0.00019,20774.0,20768.0,0.0786]
[1673822072320,0.19072595,20773.0,20770.0,0.59997423]
[1673822072597,0.01887707,20773.0,20771.0,0.00015741]
[1673822072848,2.57455519,20780.0,20771.0,0.00015741]
[1673822072849,1.61126409,20780.0,20771.0,0.00015741]
[1673822073103,1.61126409,20780.0,20774.0,0.59997423]
[1673822073348,1.61126409,20780.0,20777.0,0.59997423]
[1673822073613,1.61126409,20780.0,20777.0,0.06825251]
[1673822073863,1.61126409,20780.0,20775.0,0.89997423]
[1673822073864,1.13715479,20776.0,20775.0,0.89997423]
[1673822074117,0.92825082,20776.0,20775.0,0.89997423]
[1673822074621,0.92825082,20776.0,20775.0,0.97877423]
[1673822074622,0.15911787,20776.0,20775.0,0.97877423]
[1673822074878,1.61126409,20780.0,20776.0,0.1]
[1673822075139,1.61126409,20780.0,20779.0,0.59997423]
[1673822075362,1.61126409,20780.0,20779.0,0.89997423]
[1673822075859,1.61126409,20780.0,20779.0,0.90267303]
[1673822076648,1.61126409,20780.0,20777.0,0.0788]
[1673822077869,1.61126409,20780.0,20778.0,0.00269893]
[1673822078114,1.61132409,20780.0,20777.0,0.0788]
[1673822078864,1.61132409,20780.0,20777.0,0.3788]
[1673822079109,1.61132409,20780.0,20778.0,0.2288]
[1673822079353,1.61132409,20780.0,20779.0,1.78149423]
[1673822080120,1.61132409,20780.0,20779.0,2.26303365]
[1673822081104,0.79102409,20780.0,20779.0,2.26303365]
[1673822081358,0.79102409,20780.0,20779.0,2.34183365]
[1673822081642,0.36682409,20780.0,20779.0,2.34183365]
[1673822082408,0.36682409,20780.0,20779.0,1.74185942]
[1673822082752,0.31682409,20780.0,20779.0,1.74185942]
[1673822082908,0.31682409,20780.0,20779.0,2.04155942]
[1673822083417,0.05334848,20780.0,20779.0,2.51876111]
[1673822083950,8.48e-06,20780.0,20779.0,2.51876111]
[1673822084202,0.75812824,20783.0,20779.0,2.81816111]
[1673822084457,2.06732659,20784.0,20783.0,0.15]
[1673822084726,0.41032659,20784.0,20783.0,3.14828469]
[1673822084986,0.19902743,20786.0,20784.0,0.15]
[1673822085241,2.743e-05,20786.0,20785.0,2.20092223]
[1673822085497,2.743e-05,20786.0,20785.0,1.769087]
[1673822085761,2.743e-05,20786.0,20785.0,1.741188]
[1673822086571,0.01723116,20786.0,20785.0,1.741188]
[1673822086805,3.116e-05,20786.0,20785.0,1.741188]
[1673822087059,0.0032079,20789.0,20786.0,0.15]
[1673822087312,0.0032079,20789.0,20788.0,0.1576]
[1673822087603,0.35252483,20788.0,20781.0,0.78509418]
[1673822087825,2.38220651,20787.0,20777.0,0.19956922]
[1673822088079,0.24200595,20786.0,20778.0,0.26568208]
[1673822088349,0.962296,20784.0,20777.0,0.26177204]
[1673822088612,0.19072595,20783.0,20777.0,0.26177204]
[1673822088863,0.19072595,20783.0,20774.0,0.481357]
[1673822088864,1.96602915,20782.0,20774.0,0.0781]
[1673822089155,0.05128,20779.0,20773.0,0.00019]
[1673822089378,0.19072595,20778.0,20773.0,0.00019]
[1673822089625,0.19072595,20778.0,20771.0,0.41236807]
[1673822089626,0.19072595,20777.0,20771.0,0.0788]
[1673822089893,0.93973795,20776.0,20769.0,0.0784]
[1673822090147,0.93973795,20776.0,20767.0,0.52618726]
[1673822090148,0.40712195,20775.0,20767.0,0.52618726]
[1673822090399,0.19072595,20774.0,20767.0,0.52618726]
[1673822090654,0.19072595,20773.0,20772.0,0.35853602]
[1673822090906,0.560164,20775.0,20772.0,0.27555575]
[1673822091167,0.216396,20774.0,20767.0,0.44738726]
[1673822091438,0.19072595,20773.0,20772.0,0.33321981]
[1673822091690,0.19072595,20773.0,20767.0,0.44738726]
[1673822091691,0.216396,20773.0,20767.0,0.44738726]
[1673822091954,0.19072595,20772.0,20767.0,0.44738726]
[1673822092210,0.19072595,20771.0,20767.0,0.44738726]
[1673822092462,0.55712195,20770.0,20768.0,0.29581515]
[1673822092740,0.51468438,20771.0,20768.0,0.29581515]
[1673822093510,0.481382,20774.0,20769.0,0.00284097]
[1673822093777,0.84190992,20776.0,20770.0,0.32156]
[1673822094053,0.47720169,20774.0,20767.0,0.44738726]
[1673822094333,0.1255106,20778.0,20766.0,0.32208201]
[1673822094334,0.41262958,20771.0,20766.0,0.32208201]
[1673822094562,1.03432364,20770.0,20766.0,0.32208201]
[1673822094816,0.0788,20767.0,20766.0,0.3435774]
[1673822095079,2.57643283,20767.0,20765.0,0.00704711]
[1673822095370,0.0788,20766.0,20765.0,0.00704711]
[1673822095663,0.295196,20766.0,20765.0,0.00704711]
[1673822096405,0.96312364,20766.0,20765.0,4.711e-05]
[1673822096678,1.98750184,20766.0,20765.0,4.711e-05]
[1673822096932,2.68991192,20766.0,20765.0,4.711e-05]
[1673822097189,2.68991192,20766.0,20763.0,0.02357291]
[1673822097190,1.289e-05,20764.0,20763.0,0.02357291]
[1673822097449,1.50643593,20764.0,20756.0,0.48052896]
[1673822097701,0.0788,20760.0,20757.0,0.31060941]
[1673822097949,0.19072595,20759.0,20756.0,0.48052896]
[1673822098204,0.19072595,20758.0,20757.0,0.28013515]
[1673822098467,0.0788,20762.0,20757.0,0.02497313]
[1673822098725,0.48162089,20764.0,20757.0,0.02497313]
[1673822098726,0.91267874,20764.0,20757.0,0.35382303]
[1673822098984,1.10340469,20764.0,20757.0,0.02497313]
[1673822099237,0.481653,20762.0,20757.0,0.02497313]
[1673822099542,0.19072595,20761.0,20757.0,0.02497313]
[1673822099762,0.95890169,20760.0,20757.0,0.02497313]
[1673822100011,0.4817,20760.0,20757.0,0.02497313]
[1673822100285,0.216396,20759.0,20758.0,0.28635133]
[1673822100548,1.09018741,20759.0,20757.0,0.02497313]
[1673822100801,0.87379141,20759.0,20757.0,0.28065081]
[1673822101054,0.216396,20758.0,20757.0,0.02497313]
[1673822101313,0.216212,20758.0,20757.0,0.23347719]
[1673822101577,0.216212,20758.0,20757.0,0.01997313]
[1673822101856,1.289e-05,20764.0,20757.0,0.47757313]
[1673822102170,1.289e-05,20764.0,20759.0,0.963432]
[1673822102361,1.289e-05,20764.0,20760.0,0.15]
[1673822102623,0.48111989,20767.0,20761.0,0.32188671]
[1673822102880,0.26033894,20768.0,20762.0,0.3]
[1673822103177,0.26033894,20768.0,20762.0,0.781634]
[1673822103443,0.560276,20770.0,20762.0,0.781634]
[1673822103690,0.83237413,20774.0,20763.0,0.400395]
[1673822103691,0.35099013,20774.0,20763.0,0.400395]
[1673822103940,0.19072595,20774.0,20767.0,0.0788]
[1673822104190,0.19072595,20774.0,20768.0,0.3214551]
[1673822104191,0.29336879,20774.0,20768.0,0.3214551]
[1673822104457,0.0784,20776.0,20769.0,0.3]
[1673822104458,0.35098906,20773.0,20769.0,0.3]
[1673822104737,0.35098906,20773.0,20766.0,0.560249]
[1673822104738,0.27096604,20771.0,20766.0,0.481549]
[1673822104995,0.481421,20772.0,20763.0,0.481602]
[1673822105248,0.481421,20772.0,20768.0,0.24]
[1673822105249,0.0788,20770.0,20768.0,0.24]
[1673822105510,1.041501,20775.0,20768.0,0.24]
[1673822105769,0.26164205,20773.0,20768.0,0.24]
[1673822106057,0.26407504,20773.0,20768.0,0.7215]
[1673822106279,0.00243299,20773.0,20768.0,0.7215]
[1673822106800,0.00243299,20773.0,20769.0,0.621549]
[1673822107057,0.28199439,20771.0,20768.0,0.24]
[1673822107316,0.216354,20770.0,20768.0,0.24]
[1673822107576,0.28199439,20771.0,20768.0,0.24]
[1673822108081,0.28199439,20771.0,20768.0,0.50743874]
[1673822108336,0.00243299,20773.0,20769.0,0.27228457]
[1673822108600,0.00243299,20773.0,20770.0,1.181808]
[1673822108912,0.00243299,20773.0,20771.0,0.321549]
[1673822109174,0.00243299,20773.0,20772.0,1.262834]
[1673822109430,0.00243299,20773.0,20772.0,1.584383]
[1673822111011,0.00243299,20773.0,20772.0,1.93352985]
[1673822111270,0.00243299,20773.0,20772.0,1.63352985]
[1673822111528,0.00243299,20773.0,20772.0,0.67069585]
[1673822111787,0.00243299,20773.0,20772.0,0.34914685]
[1673822112299,0.00243299,20773.0,20772.0,0.321549]
[1673822112828,0.00243299,20773.0,20772.0,0.700349]
[1673822113081,0.00243299,20773.0,20772.0,0.77863419]
[1673822113354,0.003173,20782.0,20773.0,0.00243]
[1673822113639,0.27868821,20781.0,20776.0,0.0786]
[1673822114094,0.35386564,20780.0,20777.0,1.284129]
[1673822114096,0.35386564,20780.0,20777.0,0.962582]
[1673822114353,0.35386564,20780.0,20777.0,0.481293]
[1673822114618,0.216354,20779.0,20777.0,0.481293]
[1673822114888,0.35386564,20780.0,20776.0,0.48132]
[1673822115207,0.35386564,20780.0,20777.0,0.4813]
[1673822115403,0.35386564,20780.0,20777.0,0.7813]
[1673822115658,0.35386564,20780.0,20778.0,0.20826133]
[1673822116431,0.003173,20782.0,20778.0,0.20826133]
[1673822116685,0.003173,20782.0,20778.0,0.69185642]
[1673822116937,0.36950711,20782.0,20778.0,0.69185642]
[1673822117196,0.36950711,20782.0,20779.0,0.3]
[1673822117459,0.36950711,20782.0,20779.0,0.962488]
[1673822118111,0.003173,20782.0,20780.0,0.3]
[1673822118356,0.003173,20782.0,20781.0,1.61808888]
[1673822118596,0.003173,20782.0,20781.0,1.59660688]
[1673822119134,8.003173,20782.0,20781.0,1.59660688]
[1673822119378,8.003173,20782.0,20781.0,1.67540688]
[1673822120861,8.19389895,20782.0,20781.0,0.962416]
[1673822121102,8.19389895,20782.0,20780.0,0.48131869]
[1673822121103,8.52699273,20782.0,20780.0,0.48131869]
[1673822121346,0.216354,20781.0,20780.0,0.48131869]
[1673822121804,8.33626678,20782.0,20780.0,0.48131869]
[1673822122300,8.003173,20782.0,20780.0,0.48131869]
[1673822122552,0.216354,20781.0,20780.0,0.48131869]
[1673822122791,8.29046734,20782.0,20780.0,0.48131869]
[1673822123566,0.29251688,20781.0,20780.0,0.72131869]
[1673822124049,0.19072595,20781.0,20780.0,0.24010169]
[1673822124302,0.216354,20781.0,20780.0,0.24010169]
[1673822124544,0.697562,20781.0,20780.0,0.24010169]
[1673822124768,0.50306301,20781.0,20780.0,0.24010169]
[1673822126531,0.216354,20781.0,20780.0,0.72133269]
[1673822126737,0.216354,20781.0,20780.0,1.02133269]
[1673822126973,8.003173,20782.0,20780.0,1.02133269]
[1673822127217,8.003173,20782.0,20781.0,0.45]
[1673822127459,8.003173,20782.0,20781.0,1.06138664]
[1673822127691,8.003173,20782.0,20781.0,0.93168664]
[1673822127947,8.003173,20782.0,20781.0,0.78168664]
[1673822128177,8.003173,20782.0,20781.0,0.91138664]
[1673822128413,8.003173,20782.0,20781.0,1.06138664]
[1673822129448,8.003173,20782.0,20781.0,1.41248515]
[1673822129691,8.003173,20782.0,20781.0,1.06138664]
[1673822129935,8.003173,20782.0,20781.0,1.19008664]
[1673822130180,5.585803,20782.0,20781.0,1.66728833]
[1673822130438,4.10515359,20782.0,20781.0,1.98876433]
[1673822131169,3.57773959,20782.0,20781.0,1.98876433]
[1673822132124,3.57773959,20782.0,20781.0,1.36920621]
[1673822132833,3.57773959,20782.0,20781.0,1.51920621]
[1673822133107,3.57773959,20782.0,20781.0,1.211084]
[1673822133359,3.61898646,20782.0,20781.0,1.21116805]
[1673822133600,3.61898646,20782.0,20781.0,1.76028443]
[1673822133850,3.61898646,20782.0,20781.0,1.51116805]
[1673822134086,3.61898646,20782.0,20781.0,1.98836974]
[1673822134891,3.61898646,20782.0,20781.0,2.63536974]
[1673822135139,2.48246225,20782.0,20781.0,2.63536974]
[1673822137794,0.0032079,20789.0,20782.0,0.35]
[1673822138063,0.0032079,20789.0,20788.0,0.1287]
[1673822138306,0.0032079,20789.0,20788.0,1.71224675]
[1673822141070,0.0032079,20789.0,20788.0,2.31794844]
[1673822143815,0.0032079,20789.0,20788.0,2.34584744]
[1673822144313,0.0032079,20789.0,20788.0,2.58584744]
[1673822144818,0.0036486,20790.0,20789.0,0.15]
[1673822145068,0.0036486,20790.0,20789.0,1.66642469]
[1673822145312,0.0036486,20790.0,20789.0,2.01565069]
[1673822147313,0.0036486,20790.0,20789.0,1.88595069]
[1673822147796,0.003173,20791.0,20789.0,1.88595069]
[1673822148036,0.003173,20791.0,20790.0,0.1297]
[1673822148289,0.003173,20791.0,20790.0,1.71301]
[1673822151409,0.00287408,20795.0,20791.0,0.15046149]
[1673822151652,0.00287408,20795.0,20793.0,0.1297]
[1673822151914,0.00287408,20795.0,20794.0,1.91396]
[1673822152171,0.00287408,20795.0,20794.0,2.21396]
[1673822152676,0.00287408,20795.0,20794.0,2.21415942]
[1673822152948,0.00287408,20795.0,20794.0,2.06415942]
[1673822156031,0.00287408,20795.0,20794.0,2.19285942]
[1673822156826,0.00451359,20798.0,20794.0,2.91802323]
[1673822157089,0.00451359,20798.0,20795.0,0.5796]
[1673822157316,0.00451359,20798.0,20796.0,1.442583]
[1673822157560,0.00451359,20798.0,20797.0,0.771181]
[1673822157804,0.00451359,20798.0,20797.0,1.252019]
[1673822158859,0.00451359,20798.0,20797.0,1.55492005]
[1673822159107,0.00451359,20798.0,20797.0,1.380619]
[1673822159619,0.00451359,20798.0,20797.0,1.85782069]
[1673822159866,0.00451359,20798.0,20797.0,1.85995492]
[1673822161670,0.00451359,20798.0,20797.0,2.25995815]
[1673822162185,0.00538232,20800.0,20797.0,2.424884]
[1673822162407,0.00538232,20800.0,20799.0,0.1297]
[1673822162697,0.00538232,20800.0,20799.0,2.82042369]
[1673822164182,0.00538232,20800.0,20799.0,2.95012369]
[1673822165752,0.003365,20802.0,20800.0,0.15537968]
[1673822166061,0.003365,20802.0,20801.0,2.04924638]
[1673822166326,0.003365,20802.0,20801.0,2.67035438]
[1673822166596,0.003365,20802.0,20801.0,2.83241217]
[1673822166853,0.003365,20802.0,20801.0,2.35521048]
[1673822167384,0.003365,20802.0,20801.0,2.05521048]
[1673822167642,0.00575924,20807.0,20802.0,0.00336]
[1673822167923,0.00575924,20807.0,20803.0,1.05820169]
[1673822168189,0.00575924,20807.0,20804.0,2.70759372]
[1673822168440,0.00575924,20807.0,20805.0,0.47720169]
[1673822168925,0.00575924,20807.0,20806.0,2.212908]
[1673822168931,0.00575924,20807.0,20806.0,2.062908]
[1673822169183,0.00575924,20807.0,20806.0,2.39910244]
[1673822169709,0.32792319,20807.0,20806.0,1.282278]
[1673822169981,0.32792319,20807.0,20806.0,0.96126]
[1673822170235,0.32792319,20807.0,20806.0,0.95876]
[1673822170742,0.54427719,20807.0,20804.0,0.68734353]
[1673822171039,0.32792319,20807.0,20805.0,0.289506]
[1673822171343,0.00575924,20807.0,20806.0,1.23246234]
[1673822171612,0.00575924,20807.0,20806.0,1.55348034]
[1673822172385,0.00575924,20807.0,20806.0,0.75183234]
[1673822172697,0.00575924,20807.0,20806.0,0.48063]
[1673822172955,0.32633023,20807.0,20804.0,0.76868481]
[1673822173207,0.51705618,20807.0,20804.0,0.76868481]
[1673822173463,0.32633023,20807.0,20804.0,0.28801281]
[1673822173975,0.32633023,20807.0,20805.0,0.22863917]